[Event "Titled Tuesday Blitz February 22 Early 2022"]
[White "Rodchenkov, Sergey D."]
[Black "Prieto Aranguren, Alain"]
[WhiteFideId "4168712"]
[BlackFideId "2268906"]
[WhiteElo "2306"]
[BlackElo "2235"]
[Result "0-1"]
[Round "07"]
[TimeControl "180+1"]
[Date "2022.02.22"]
[WhiteClock "0:00:12"]
[BlackClock "0:00:12"]

1. e4 {[%clk 0:03:00]}  e5 {[%clk 0:02:55]} 2. Nf3 {[%clk 0:03:01]}  d5 {[%clk 0:02:53]} 3. exd5 {[%clk 0:02:48]}  e4 {[%clk 0:02:51]} 4. Qe2 {[%clk 0:02:49]}  Nf6 {[%clk 0:02:51]} 5. Nc3 {[%clk 0:02:49]}  Be7 {[%clk 0:02:50]} 6. Nxe4 {[%clk 0:02:39]}  O-O {[%clk 0:02:50]} 7. d3 {[%clk 0:02:37]}  Nxd5 {[%clk 0:02:20]} 8. Bd2 {[%clk 0:02:28]}  Re8 {[%clk 0:02:16]} 9. O-O-O {[%clk 0:02:22]}  c6 {[%clk 0:02:11]} 10. g4 {[%clk 0:02:12]}  Bxg4 {[%clk 0:02:07]} 11. Rg1 {[%clk 0:02:12]}  f5 {[%clk 0:02:02]} 12. Rxg4 {[%clk 0:01:40]}  fxg4 {[%clk 0:02:00]} 13. Ne5 {[%clk 0:01:41]}  Nd7 {[%clk 0:01:39]} 14. Nxg4 {[%clk 0:01:40]}  N7f6 {[%clk 0:01:33]} 15. Bg2 {[%clk 0:01:41]}  a5 {[%clk 0:01:27]} 16. Rg1 {[%clk 0:01:37]}  Kh8 {[%clk 0:01:15]} 17. Ne5 {[%clk 0:01:32]}  Qc7 {[%clk 0:01:08]} 18. Ng5 {[%clk 0:01:08]}  Bd6 {[%clk 0:01:04]} 19. d4 {[%clk 0:01:02]}  Bxe5 {[%clk 0:01:00]} 20. dxe5 {[%clk 0:01:02]}  h6 {[%clk 0:00:55]} 21. Nf3 {[%clk 0:01:02]}  Nd7 {[%clk 0:00:48]} 22. c4 {[%clk 0:00:57]}  Nb4 {[%clk 0:00:42]} 23. a3 {[%clk 0:00:56]}  Na6 {[%clk 0:00:35]} 24. Bf4 {[%clk 0:00:56]}  Ndc5 {[%clk 0:00:31]} 25. Kb1 {[%clk 0:00:28]}  Qf7 {[%clk 0:00:25]} 26. Bg3 {[%clk 0:00:26]}  Rad8 {[%clk 0:00:21]} 27. Nh4 {[%clk 0:00:25]}  Nb3 {[%clk 0:00:17]} 28. Ka2 {[%clk 0:00:21]}  Nac5 {[%clk 0:00:15]} 29. Be4 {[%clk 0:00:17]}  Rd2 {[%clk 0:00:14]} 30. Qe3 {[%clk 0:00:17]}  Qxc4 {[%clk 0:00:13]} 31. Ng6+ {[%clk 0:00:15]}  Kg8 {[%clk 0:00:12]} 32. Bb1 {[%clk 0:00:13]}  Nc1+ {[%clk 0:00:12]} 33. Ka1 {[%clk 0:00:12]}  N5b3+ {[%clk 0:00:12]} 0-1


[Site "https://www.chess.com"]

[Event "Titled Tuesday Blitz February 22 Early 2022"]
[White "Rudykh, Stepan"]
[Black "Berezin, Viktor"]
[WhiteFideId "4180321"]
[BlackFideId "14107872"]
[WhiteElo "2125"]
[BlackElo "2310"]
[Result "0-1"]
[Round "07"]
[TimeControl "180+1"]
[Date "2022.02.22"]
[WhiteClock "0:00:04"]
[BlackClock "0:00:07"]

1. e4 {[%clk 0:02:58]}  d5 {[%clk 0:02:47]} 2. exd5 {[%clk 0:02:57]}  Nf6 {[%clk 0:02:47]} 3. Nf3 {[%clk 0:02:58]}  Bg4 {[%clk 0:02:46]} 4. Bb5+ {[%clk 0:02:52]}  Nbd7 {[%clk 0:02:46]} 5. h3 {[%clk 0:02:50]}  Bh5 {[%clk 0:02:41]} 6. g4 {[%clk 0:02:39]}  Bg6 {[%clk 0:02:39]} 7. d4 {[%clk 0:02:35]}  a6 {[%clk 0:02:39]} 8. Ba4 {[%clk 0:02:26]}  b5 {[%clk 0:02:38]} 9. Bb3 {[%clk 0:02:27]}  Nb6 {[%clk 0:02:38]} 10. O-O {[%clk 0:02:14]}  h5 {[%clk 0:02:33]} 11. Ne5 {[%clk 0:02:07]}  Be4 {[%clk 0:02:30]} 12. g5 {[%clk 0:02:00]}  Nfxd5 {[%clk 0:02:28]} 13. Qe2 {[%clk 0:01:47]}  Bf5 {[%clk 0:02:19]} 14. Qf3 {[%clk 0:01:36]}  e6 {[%clk 0:02:16]} 15. g6 {[%clk 0:01:27]}  fxg6 {[%clk 0:02:11]} 16. Qg3 {[%clk 0:01:18]}  Bd6 {[%clk 0:01:38]} 17. Bg5 {[%clk 0:01:15]}  Nf6 {[%clk 0:01:29]} 18. Nd2 {[%clk 0:00:51]}  O-O {[%clk 0:01:23]} 19. Rae1 {[%clk 0:00:40]}  Nbd5 {[%clk 0:01:17]} 20. Qh4 {[%clk 0:00:34]}  Qe8 {[%clk 0:01:08]} 21. Bxf6 {[%clk 0:00:29]}  gxf6 {[%clk 0:01:05]} 22. Bxd5 {[%clk 0:00:25]}  exd5 {[%clk 0:01:02]} 23. Ng4 {[%clk 0:00:22]}  Qc8 {[%clk 0:00:34]} 24. Nxf6+ {[%clk 0:00:20]}  Kg7 {[%clk 0:00:33]} 25. Nxd5 {[%clk 0:00:17]}  Qd7 {[%clk 0:00:20]} 26. Ne7 {[%clk 0:00:15]}  Rae8 {[%clk 0:00:12]} 27. Nxf5+ {[%clk 0:00:15]}  Qxf5 {[%clk 0:00:10]} 28. Rxe8 {[%clk 0:00:14]}  Rxe8 {[%clk 0:00:11]} 29. d5 {[%clk 0:00:09]}  Re2 {[%clk 0:00:10]} 30. Qd4+ {[%clk 0:00:07]}  Be5 {[%clk 0:00:10]} 31. Qd3 {[%clk 0:00:06]}  Qf4 {[%clk 0:00:09]} 32. Qg3 {[%clk 0:00:05]}  Qxg3+ {[%clk 0:00:07]} 33. fxg3 {[%clk 0:00:06]}  Rxd2 {[%clk 0:00:08]} 34. Re1 {[%clk 0:00:06]}  Bd6 {[%clk 0:00:06]} 35. Rc1 {[%clk 0:00:05]}  Rxd5 {[%clk 0:00:06]} 36. Re1 {[%clk 0:00:04]}  Rd2 {[%clk 0:00:07]} 0-1


[Site "https://www.chess.com"]

[Event "Titled Tuesday Blitz February 22 Early 2022"]
[White "Safarli, Eltaj"]
[Black "Vidit, Santosh Gujrathi"]
[WhiteFideId "13402129"]
[BlackFideId "5029465"]
[WhiteElo "2634"]
[BlackElo "2654"]
[Result "1/2-1/2"]
[Round "07"]
[TimeControl "180+1"]
[Date "2022.02.22"]
[WhiteClock "0:00:03"]
[BlackClock "0:00:02"]

1. e4 {[%clk 0:03:00]}  e5 {[%clk 0:03:00]} 2. Nf3 {[%clk 0:03:00]}  Nc6 {[%clk 0:03:00]} 3. Bb5 {[%clk 0:03:00]}  a6 {[%clk 0:02:58]} 4. Ba4 {[%clk 0:03:01]}  Nf6 {[%clk 0:02:59]} 5. Nc3 {[%clk 0:03:01]}  Bc5 {[%clk 0:02:54]} 6. d3 {[%clk 0:02:59]}  b5 {[%clk 0:02:50]} 7. Bb3 {[%clk 0:02:59]}  h6 {[%clk 0:02:45]} 8. a4 {[%clk 0:02:59]}  b4 {[%clk 0:02:38]} 9. Nd5 {[%clk 0:02:59]}  d6 {[%clk 0:02:37]} 10. Be3 {[%clk 0:02:54]}  Rb8 {[%clk 0:02:28]} 11. h3 {[%clk 0:02:50]}  O-O {[%clk 0:02:15]} 12. O-O {[%clk 0:02:50]}  Be6 {[%clk 0:02:03]} 13. a5 {[%clk 0:02:41]}  Bxe3 {[%clk 0:01:47]} 14. fxe3 {[%clk 0:02:42]}  Bxd5 {[%clk 0:01:47]} 15. exd5 {[%clk 0:02:23]}  Ne7 {[%clk 0:01:47]} 16. Nh4 {[%clk 0:02:12]}  Nexd5 {[%clk 0:01:24]} 17. Qf3 {[%clk 0:02:06]}  c6 {[%clk 0:01:19]} 18. Nf5 {[%clk 0:01:47]}  Kh7 {[%clk 0:01:19]} 19. Rf2 {[%clk 0:01:11]}  g6 {[%clk 0:01:17]} 20. Ng3 {[%clk 0:01:12]}  Kg7 {[%clk 0:01:14]} 21. Raf1 {[%clk 0:01:12]}  Rb5 {[%clk 0:00:53]} 22. Ne4 {[%clk 0:01:10]}  Nh7 {[%clk 0:00:38]} 23. Qg3 {[%clk 0:00:49]}  Rxa5 {[%clk 0:00:32]} 24. d4 {[%clk 0:00:46]}  Qe7 {[%clk 0:00:27]} 25. c4 {[%clk 0:00:40]}  bxc3 {[%clk 0:00:26]} 26. bxc3 {[%clk 0:00:41]}  Ra3 {[%clk 0:00:23]} 27. Nd2 {[%clk 0:00:26]}  Qg5 {[%clk 0:00:21]} 28. Qf3 {[%clk 0:00:15]}  f5 {[%clk 0:00:15]} 29. Bxd5 {[%clk 0:00:13]}  cxd5 {[%clk 0:00:16]} 30. Qxd5 {[%clk 0:00:13]}  Rxc3 {[%clk 0:00:15]} 31. Qxd6 {[%clk 0:00:13]}  Qxe3 {[%clk 0:00:12]} 32. Nf3 {[%clk 0:00:06]}  Rf6 {[%clk 0:00:08]} 33. Qe7+ {[%clk 0:00:04]}  Rf7 {[%clk 0:00:08]} 34. Qd6 {[%clk 0:00:04]}  Rf6 {[%clk 0:00:05]} 35. Qe7+ {[%clk 0:00:03]}  Rf7 {[%clk 0:00:06]} 36. Qd6 {[%clk 0:00:03]}  Rf6 {[%clk 0:00:02]} 1/2-1/2


[Site "https://www.chess.com"]

[Event "Titled Tuesday Blitz February 22 Early 2022"]
[White "Sahin, Handenur"]
[Black "Caputcuoglu, Zeki Berke"]
[WhiteFideId "6334865"]
[BlackFideId "34548610"]
[WhiteElo "2122"]
[BlackElo "1368"]
[Result "0-1"]
[Round "07"]
[TimeControl "180+1"]
[Date "2022.02.22"]
[WhiteClock "0:00:29"]
[BlackClock "0:00:57"]

1. e4 {[%clk 0:03:00]}  e5 {[%clk 0:02:59]} 2. Nf3 {[%clk 0:03:00]}  Nc6 {[%clk 0:02:57]} 3. Bb5 {[%clk 0:02:59]}  a6 {[%clk 0:02:58]} 4. Ba4 {[%clk 0:02:59]}  Nf6 {[%clk 0:02:58]} 5. d3 {[%clk 0:02:59]}  b5 {[%clk 0:02:57]} 6. Bb3 {[%clk 0:02:59]}  Be7 {[%clk 0:02:58]} 7. O-O {[%clk 0:02:56]}  d6 {[%clk 0:02:58]} 8. a3 {[%clk 0:02:56]}  O-O {[%clk 0:02:58]} 9. Be3 {[%clk 0:02:55]}  Be6 {[%clk 0:02:52]} 10. Nc3 {[%clk 0:02:51]}  Bxb3 {[%clk 0:02:47]} 11. cxb3 {[%clk 0:02:51]}  d5 {[%clk 0:02:47]} 12. Bg5 {[%clk 0:02:43]}  dxe4 {[%clk 0:02:27]} 13. dxe4 {[%clk 0:02:41]}  h6 {[%clk 0:02:24]} 14. Bxf6 {[%clk 0:02:38]}  Bxf6 {[%clk 0:02:24]} 15. Nd5 {[%clk 0:02:38]}  Bg5 {[%clk 0:02:18]} 16. Qc2 {[%clk 0:02:35]}  Ne7 {[%clk 0:02:05]} 17. Rad1 {[%clk 0:02:33]}  Ng6 {[%clk 0:01:44]} 18. Nb6 {[%clk 0:02:23]}  Qf6 {[%clk 0:01:43]} 19. Nxa8 {[%clk 0:02:16]}  Rxa8 {[%clk 0:01:44]} 20. Nxg5 {[%clk 0:02:16]}  hxg5 {[%clk 0:01:38]} 21. Qxc7 {[%clk 0:02:11]}  Nf4 {[%clk 0:01:38]} 22. Qd7 {[%clk 0:02:06]}  g6 {[%clk 0:01:33]} 23. Rd6 {[%clk 0:02:05]}  Ne6 {[%clk 0:01:32]} 24. Rc1 {[%clk 0:01:58]}  Qf4 {[%clk 0:01:32]} 25. Rc8+ {[%clk 0:01:57]}  Rxc8 {[%clk 0:01:31]} 26. Qxc8+ {[%clk 0:01:58]}  Kg7 {[%clk 0:01:32]} 27. Rxe6 {[%clk 0:01:13]}  fxe6 {[%clk 0:01:28]} 28. Qd7+ {[%clk 0:01:10]}  Kh6 {[%clk 0:01:24]} 29. Qc6 {[%clk 0:01:02]}  Qd2 {[%clk 0:01:20]} 30. h4 {[%clk 0:00:58]}  gxh4 {[%clk 0:01:15]} 31. Qxe6 {[%clk 0:00:52]}  Qxb2 {[%clk 0:01:13]} 32. Qg4 {[%clk 0:00:49]}  Qc1+ {[%clk 0:01:11]} 33. Kh2 {[%clk 0:00:49]}  Qf4+ {[%clk 0:01:07]} 34. Qxf4+ {[%clk 0:00:41]}  exf4 {[%clk 0:01:08]} 35. g3 {[%clk 0:00:41]}  hxg3+ {[%clk 0:00:57]} 36. fxg3 {[%clk 0:00:41]}  Kg5 {[%clk 0:00:55]} 37. Kg2 {[%clk 0:00:35]}  fxg3 {[%clk 0:00:54]} 38. Kxg3 {[%clk 0:00:35]}  Kf6 {[%clk 0:00:52]} 39. Kf4 {[%clk 0:00:33]}  g5+ {[%clk 0:00:52]} 40. Kg4 {[%clk 0:00:28]}  Ke5 {[%clk 0:00:52]} 41. Kxg5 {[%clk 0:00:26]}  Kxe4 {[%clk 0:00:53]} 42. a4 {[%clk 0:00:26]}  b4 {[%clk 0:00:52]} 43. Kf6 {[%clk 0:00:24]}  Kd3 {[%clk 0:00:52]} 44. a5 {[%clk 0:00:24]}  Kc3 {[%clk 0:00:52]} 45. Ke5 {[%clk 0:00:25]}  Kxb3 {[%clk 0:00:53]} 46. Kd5 {[%clk 0:00:25]}  Kc3 {[%clk 0:00:52]} 47. Kc6 {[%clk 0:00:26]}  b3 {[%clk 0:00:53]} 48. Kb6 {[%clk 0:00:27]}  b2 {[%clk 0:00:54]} 49. Kxa6 {[%clk 0:00:27]}  b1=Q {[%clk 0:00:55]} 50. Ka7 {[%clk 0:00:28]}  Kc4 {[%clk 0:00:56]} 51. a6 {[%clk 0:00:28]}  Kc5 {[%clk 0:00:56]} 52. Ka8 {[%clk 0:00:28]}  Kc6 {[%clk 0:00:56]} 53. a7 {[%clk 0:00:29]}  Qb7# {[%clk 0:00:57]} 0-1


[Site "https://www.chess.com"]

[Event "Titled Tuesday Blitz February 22 Early 2022"]
[White "Sarana, Alexey"]
[Black "Blohberger, Felix"]
[WhiteFideId "24133795"]
[BlackFideId "1632051"]
[WhiteElo "2665"]
[BlackElo "2474"]
[Result "0-1"]
[Round "07"]
[TimeControl "180+1"]
[Date "2022.02.22"]
[WhiteClock "0:00:10"]
[BlackClock "0:00:10"]

1. d4 {[%clk 0:03:00]}  Nf6 {[%clk 0:02:59]} 2. c4 {[%clk 0:02:55]}  e6 {[%clk 0:02:59]} 3. Nc3 {[%clk 0:02:55]}  Bb4 {[%clk 0:02:59]} 4. e3 {[%clk 0:02:56]}  O-O {[%clk 0:02:58]} 5. Bd3 {[%clk 0:02:56]}  d5 {[%clk 0:02:58]} 6. a3 {[%clk 0:02:55]}  Bxc3+ {[%clk 0:02:56]} 7. bxc3 {[%clk 0:02:56]}  dxc4 {[%clk 0:02:57]} 8. Bxc4 {[%clk 0:02:57]}  c5 {[%clk 0:02:57]} 9. Ne2 {[%clk 0:02:58]}  Qc7 {[%clk 0:02:57]} 10. Bd3 {[%clk 0:02:57]}  b6 {[%clk 0:02:55]} 11. e4 {[%clk 0:02:57]}  Bb7 {[%clk 0:02:55]} 12. f3 {[%clk 0:02:57]}  Nc6 {[%clk 0:02:49]} 13. Bg5 {[%clk 0:02:49]}  cxd4 {[%clk 0:02:35]} 14. cxd4 {[%clk 0:02:48]}  Nxd4 {[%clk 0:02:36]} 15. Rc1 {[%clk 0:02:41]}  Qe5 {[%clk 0:01:50]} 16. Bf4 {[%clk 0:02:22]}  Qa5+ {[%clk 0:01:49]} 17. Bd2 {[%clk 0:02:22]}  Qxa3 {[%clk 0:01:49]} 18. Rc3 {[%clk 0:02:03]}  Qd6 {[%clk 0:01:44]} 19. O-O {[%clk 0:01:38]}  Rfd8 {[%clk 0:01:36]} 20. Be3 {[%clk 0:01:35]}  Nxe2+ {[%clk 0:01:22]} 21. Qxe2 {[%clk 0:01:35]}  Rac8 {[%clk 0:01:22]} 22. Rxc8 {[%clk 0:01:31]}  Rxc8 {[%clk 0:01:23]} 23. Rd1 {[%clk 0:01:32]}  Qe7 {[%clk 0:01:14]} 24. h4 {[%clk 0:01:29]}  h6 {[%clk 0:01:10]} 25. Ra1 {[%clk 0:01:23]}  Bc6 {[%clk 0:01:00]} 26. Qb2 {[%clk 0:01:20]}  Rd8 {[%clk 0:00:52]} 27. Bf1 {[%clk 0:01:19]}  Nh5 {[%clk 0:00:46]} 28. Qe5 {[%clk 0:00:34]}  Qxh4 {[%clk 0:00:37]} 29. Bf2 {[%clk 0:00:34]}  Qf6 {[%clk 0:00:24]} 30. Qxf6 {[%clk 0:00:17]}  Nxf6 {[%clk 0:00:25]} 31. Bc4 {[%clk 0:00:17]}  Rd7 {[%clk 0:00:21]} 32. Rc1 {[%clk 0:00:16]}  Ba4 {[%clk 0:00:19]} 33. Ba6 {[%clk 0:00:16]}  Rd1+ {[%clk 0:00:19]} 34. Rxd1 {[%clk 0:00:15]}  Bxd1 {[%clk 0:00:20]} 35. Bg3 {[%clk 0:00:16]}  Nd7 {[%clk 0:00:15]} 36. Bb5 {[%clk 0:00:16]}  Nc5 {[%clk 0:00:16]} 37. Bb8 {[%clk 0:00:15]}  a6 {[%clk 0:00:13]} 38. Bf1 {[%clk 0:00:16]}  b5 {[%clk 0:00:13]} 39. Kf2 {[%clk 0:00:15]}  Bb3 {[%clk 0:00:12]} 40. Be2 {[%clk 0:00:15]}  Bc4 {[%clk 0:00:12]} 41. Bd1 {[%clk 0:00:15]}  a5 {[%clk 0:00:12]} 42. Ke3 {[%clk 0:00:15]}  a4 {[%clk 0:00:13]} 43. Kd4 {[%clk 0:00:16]}  Nd7 {[%clk 0:00:12]} 44. Bd6 {[%clk 0:00:15]}  f6 {[%clk 0:00:11]} 45. f4 {[%clk 0:00:15]}  e5+ {[%clk 0:00:11]} 46. Kc3 {[%clk 0:00:14]}  exf4 {[%clk 0:00:11]} 47. Bxf4 {[%clk 0:00:15]}  a3 {[%clk 0:00:11]} 48. Bd6 {[%clk 0:00:14]}  a2 {[%clk 0:00:11]} 49. Kb2 {[%clk 0:00:15]}  Ne5 {[%clk 0:00:11]} 50. g3 {[%clk 0:00:14]}  b4 {[%clk 0:00:11]} 51. Ka1 {[%clk 0:00:11]}  b3 {[%clk 0:00:11]} 52. Ba3 {[%clk 0:00:11]}  Nd3 {[%clk 0:00:10]} 53. Bg4 {[%clk 0:00:11]}  Kf7 {[%clk 0:00:09]} 54. Bh5+ {[%clk 0:00:11]}  g6 {[%clk 0:00:09]} 55. Bg4 {[%clk 0:00:11]}  b2+ {[%clk 0:00:08]} 56. Bxb2 {[%clk 0:00:11]}  Nxb2 {[%clk 0:00:09]} 57. Kxb2 {[%clk 0:00:12]}  h5 {[%clk 0:00:09]} 58. Bh3 {[%clk 0:00:12]}  Ke7 {[%clk 0:00:09]} 59. Bc8 {[%clk 0:00:11]}  Kd6 {[%clk 0:00:10]} 60. Bb7 {[%clk 0:00:10]}  Ke5 {[%clk 0:00:10]} 61. Bc6 {[%clk 0:00:10]}  g5 {[%clk 0:00:10]} 0-1


[Site "https://www.chess.com"]

[Event "Titled Tuesday Blitz February 22 Early 2022"]
[White "Sargissyan, Sargis"]
[Black "Voege, Tobias"]
[WhiteFideId "13303210"]
[BlackFideId "1270513"]
[WhiteElo "2174"]
[BlackElo "2335"]
[Result "1-0"]
[Round "07"]
[TimeControl "180+1"]
[Date "2022.02.22"]
[WhiteClock "0:00:05"]
[BlackClock "0:00:02"]

1. e4 {[%clk 0:03:00]}  e6 {[%clk 0:02:57]} 2. d4 {[%clk 0:03:00]}  d5 {[%clk 0:02:58]} 3. Nc3 {[%clk 0:03:01]}  Nf6 {[%clk 0:02:57]} 4. Bg5 {[%clk 0:03:00]}  Be7 {[%clk 0:02:57]} 5. e5 {[%clk 0:03:00]}  Nfd7 {[%clk 0:02:52]} 6. Bxe7 {[%clk 0:03:01]}  Qxe7 {[%clk 0:02:52]} 7. f4 {[%clk 0:03:01]}  a6 {[%clk 0:02:50]} 8. Nf3 {[%clk 0:03:00]}  c5 {[%clk 0:02:51]} 9. Qd2 {[%clk 0:02:59]}  Nc6 {[%clk 0:02:50]} 10. dxc5 {[%clk 0:02:53]}  Nxc5 {[%clk 0:02:49]} 11. Bd3 {[%clk 0:02:52]}  b5 {[%clk 0:02:44]} 12. Ne2 {[%clk 0:02:52]}  Bb7 {[%clk 0:02:35]} 13. Ned4 {[%clk 0:02:52]}  Rc8 {[%clk 0:02:27]} 14. O-O {[%clk 0:02:46]}  Ne4 {[%clk 0:02:21]} 15. Qe3 {[%clk 0:02:10]}  Nxd4 {[%clk 0:02:10]} 16. Nxd4 {[%clk 0:02:08]}  O-O {[%clk 0:02:10]} 17. Kh1 {[%clk 0:01:57]}  f5 {[%clk 0:01:54]} 18. exf6 {[%clk 0:01:53]}  Rxf6 {[%clk 0:01:48]} 19. f5 {[%clk 0:01:36]}  exf5 {[%clk 0:01:40]} 20. Rxf5 {[%clk 0:01:36]}  Rxf5 {[%clk 0:01:39]} 21. Nxf5 {[%clk 0:01:36]}  Qe5 {[%clk 0:01:36]} 22. Bxe4 {[%clk 0:01:17]}  dxe4 {[%clk 0:01:32]} 23. Qg5 {[%clk 0:01:17]}  Qxb2 {[%clk 0:01:15]} 24. Rf1 {[%clk 0:00:58]}  Re8 {[%clk 0:01:03]} 25. Nh6+ {[%clk 0:00:50]}  Kh8 {[%clk 0:01:00]} 26. Nf7+ {[%clk 0:00:50]}  Kg8 {[%clk 0:00:58]} 27. Nd6 {[%clk 0:00:40]}  h6 {[%clk 0:00:32]} 28. Qg6 {[%clk 0:00:28]}  Re7 {[%clk 0:00:32]} 29. Nxb7 {[%clk 0:00:26]}  Qxc2 {[%clk 0:00:10]} 30. Nd6 {[%clk 0:00:19]}  Qd3 {[%clk 0:00:08]} 31. Rc1 {[%clk 0:00:14]}  Rc7 {[%clk 0:00:02]} 32. Re1 {[%clk 0:00:05]} 1-0


[Site "https://www.chess.com"]

[Event "Titled Tuesday Blitz February 22 Early 2022"]
[White "Shuvalov, Evgenij"]
[Black "Jodorcovsky Werjivker, Paulo"]
[WhiteFideId "4187237"]
[BlackFideId "3700305"]
[WhiteElo "2119"]
[BlackElo "2075"]
[Result "1-0"]
[Round "07"]
[TimeControl "180+1"]
[Date "2022.02.22"]
[WhiteClock "0:00:24"]
[BlackClock "0:00:05"]

1. Nf3 {[%clk 0:03:00]}  d5 {[%clk 0:02:59]} 2. c4 {[%clk 0:03:00]}  e6 {[%clk 0:02:59]} 3. g3 {[%clk 0:03:00]}  Nf6 {[%clk 0:02:59]} 4. Bg2 {[%clk 0:03:01]}  dxc4 {[%clk 0:02:56]} 5. Qa4+ {[%clk 0:02:59]}  Bd7 {[%clk 0:02:56]} 6. Qxc4 {[%clk 0:02:59]}  c5 {[%clk 0:02:56]} 7. Ne5 {[%clk 0:02:57]}  Qc8 {[%clk 0:02:56]} 8. O-O {[%clk 0:02:54]}  Nc6 {[%clk 0:02:56]} 9. Nxd7 {[%clk 0:02:54]}  Qxd7 {[%clk 0:02:56]} 10. d3 {[%clk 0:02:48]}  Be7 {[%clk 0:02:47]} 11. Be3 {[%clk 0:02:45]}  Rc8 {[%clk 0:02:11]} 12. Qc1 {[%clk 0:02:30]}  b6 {[%clk 0:02:06]} 13. Nc3 {[%clk 0:02:29]}  O-O {[%clk 0:02:05]} 14. a3 {[%clk 0:02:26]}  Nd4 {[%clk 0:02:05]} 15. Qd1 {[%clk 0:02:23]}  Rfd8 {[%clk 0:02:00]} 16. a4 {[%clk 0:02:13]}  Nc6 {[%clk 0:01:48]} 17. Qd2 {[%clk 0:02:01]}  Nd5 {[%clk 0:01:48]} 18. Nxd5 {[%clk 0:02:00]}  exd5 {[%clk 0:01:48]} 19. d4 {[%clk 0:01:59]}  cxd4 {[%clk 0:01:47]} 20. Bxd4 {[%clk 0:01:59]}  Nxd4 {[%clk 0:01:47]} 21. Qxd4 {[%clk 0:02:00]}  Bf6 {[%clk 0:01:47]} 22. Qd2 {[%clk 0:01:58]}  Qf5 {[%clk 0:01:46]} 23. Rac1 {[%clk 0:01:53]}  Qe5 {[%clk 0:01:34]} 24. b3 {[%clk 0:01:49]}  d4 {[%clk 0:01:28]} 25. Bh3 {[%clk 0:01:45]}  Rxc1 {[%clk 0:01:26]} 26. Rxc1 {[%clk 0:01:44]}  g6 {[%clk 0:01:25]} 27. Qd3 {[%clk 0:01:39]}  Re8 {[%clk 0:01:23]} 28. Rc2 {[%clk 0:01:32]}  h5 {[%clk 0:01:20]} 29. Bg2 {[%clk 0:01:30]}  Kg7 {[%clk 0:01:19]} 30. h4 {[%clk 0:01:30]}  Qe6 {[%clk 0:01:16]} 31. Bf3 {[%clk 0:01:29]}  Rc8 {[%clk 0:01:16]} 32. Rc4 {[%clk 0:01:20]}  Rxc4 {[%clk 0:01:13]} 33. bxc4 {[%clk 0:01:21]}  Qd6 {[%clk 0:01:12]} 34. Kg2 {[%clk 0:01:19]}  Qb4 {[%clk 0:01:12]} 35. Bc6 {[%clk 0:01:19]}  Qc5 {[%clk 0:01:07]} 36. Bd5 {[%clk 0:01:19]}  Qb4 {[%clk 0:01:03]} 37. Qd1 {[%clk 0:01:09]}  Qc3 {[%clk 0:00:59]} 38. Qb1 {[%clk 0:01:04]}  Qd2 {[%clk 0:00:51]} 39. Qe4 {[%clk 0:01:02]}  Qb4 {[%clk 0:00:45]} 40. Qe8 {[%clk 0:01:00]}  Qe7 {[%clk 0:00:44]} 41. Qa8 {[%clk 0:00:57]}  Qxe2 {[%clk 0:00:37]} 42. Qxa7 {[%clk 0:00:57]}  Qe7 {[%clk 0:00:25]} 43. Qxb6 {[%clk 0:00:56]}  d3 {[%clk 0:00:25]} 44. a5 {[%clk 0:00:47]}  d2 {[%clk 0:00:24]} 45. Bf3 {[%clk 0:00:47]}  Qd7 {[%clk 0:00:20]} 46. Qb3 {[%clk 0:00:44]}  Bd4 {[%clk 0:00:19]} 47. Qd3 {[%clk 0:00:37]}  Qd8 {[%clk 0:00:13]} 48. Qxd2 {[%clk 0:00:36]}  Qf6 {[%clk 0:00:12]} 49. a6 {[%clk 0:00:33]}  Bc3 {[%clk 0:00:12]} 50. Qa2 {[%clk 0:00:31]}  Qd8 {[%clk 0:00:07]} 51. a7 {[%clk 0:00:29]}  Qf6 {[%clk 0:00:06]} 52. a8=Q {[%clk 0:00:29]}  Be5 {[%clk 0:00:06]} 53. Qd5 {[%clk 0:00:27]}  Kh6 {[%clk 0:00:06]} 54. c5 {[%clk 0:00:27]}  Qe7 {[%clk 0:00:06]} 55. c6 {[%clk 0:00:27]}  Bc7 {[%clk 0:00:06]} 56. Qxf7 {[%clk 0:00:26]}  Qxf7 {[%clk 0:00:07]} 57. Qxf7 {[%clk 0:00:26]}  Bxg3 {[%clk 0:00:06]} 58. fxg3 {[%clk 0:00:25]}  g5 {[%clk 0:00:06]} 59. Bxh5 {[%clk 0:00:24]}  g4 {[%clk 0:00:05]} 60. Qg6# {[%clk 0:00:24]} 1-0


[Site "https://www.chess.com"]

[Event "Titled Tuesday Blitz February 22 Early 2022"]
[White "Singh, Ojasva"]
[Black "Vakhlamov, Igor L."]
[WhiteFideId "25681958"]
[BlackFideId "24126748"]
[WhiteElo "1741"]
[BlackElo "2401"]
[Result "1/2-1/2"]
[Round "07"]
[TimeControl "180+1"]
[Date "2022.02.22"]
[WhiteClock "0:00:35"]
[BlackClock "0:02:07"]

1. e4 {[%clk 0:03:00]}  c5 {[%clk 0:03:00]} 2. Nf3 {[%clk 0:03:00]}  Nc6 {[%clk 0:03:00]} 3. d4 {[%clk 0:03:00]}  cxd4 {[%clk 0:03:01]} 4. Nxd4 {[%clk 0:03:01]}  g6 {[%clk 0:03:01]} 5. c4 {[%clk 0:02:57]}  Nf6 {[%clk 0:03:01]} 6. Nc3 {[%clk 0:02:56]}  d6 {[%clk 0:03:02]} 7. Be2 {[%clk 0:02:55]}  Nxd4 {[%clk 0:03:02]} 8. Qxd4 {[%clk 0:02:56]}  Bg7 {[%clk 0:03:03]} 9. Bg5 {[%clk 0:02:56]}  O-O {[%clk 0:03:03]} 10. Qd2 {[%clk 0:02:57]}  Be6 {[%clk 0:03:04]} 11. O-O {[%clk 0:02:56]}  Qa5 {[%clk 0:03:03]} 12. Rac1 {[%clk 0:02:54]}  Rfc8 {[%clk 0:03:03]} 13. b3 {[%clk 0:02:54]}  a6 {[%clk 0:03:03]} 14. Rfd1 {[%clk 0:02:49]}  b5 {[%clk 0:03:02]} 15. Bxf6 {[%clk 0:02:42]}  Bxf6 {[%clk 0:02:59]} 16. Nd5 {[%clk 0:02:43]}  Qxd2 {[%clk 0:02:59]} 17. Nxf6+ {[%clk 0:02:43]}  Kg7 {[%clk 0:02:57]} 18. Nh5+ {[%clk 0:02:42]}  gxh5 {[%clk 0:02:58]} 19. Rxd2 {[%clk 0:02:41]}  bxc4 {[%clk 0:02:58]} 20. bxc4 {[%clk 0:02:33]}  Rc5 {[%clk 0:02:58]} 21. f4 {[%clk 0:02:32]}  f5 {[%clk 0:02:56]} 22. exf5 {[%clk 0:02:27]}  Rxf5 {[%clk 0:02:57]} 23. Bf3 {[%clk 0:02:18]}  Rc8 {[%clk 0:02:57]} 24. Re1 {[%clk 0:02:17]}  Kf6 {[%clk 0:02:50]} 25. Rde2 {[%clk 0:02:13]}  Bxc4 {[%clk 0:02:39]} 26. Rxe7 {[%clk 0:02:13]}  Rxf4 {[%clk 0:02:34]} 27. Rxh7 {[%clk 0:02:11]}  h4 {[%clk 0:02:34]} 28. Rh6+ {[%clk 0:02:10]}  Kg5 {[%clk 0:02:34]} 29. Rxd6 {[%clk 0:02:09]}  Bxa2 {[%clk 0:02:34]} 30. Rxa6 {[%clk 0:02:00]}  Bc4 {[%clk 0:02:34]} 31. Re5+ {[%clk 0:01:42]}  Rf5 {[%clk 0:02:32]} 32. Raa5 {[%clk 0:01:38]}  Rxe5 {[%clk 0:02:31]} 33. Rxe5+ {[%clk 0:01:39]}  Kf4 {[%clk 0:02:29]} 34. Rh5 {[%clk 0:01:38]}  Ke3 {[%clk 0:02:09]} 35. Rxh4 {[%clk 0:01:37]}  Bd5 {[%clk 0:02:09]} 36. h3 {[%clk 0:00:44]}  Bxf3 {[%clk 0:02:07]} 37. gxf3 {[%clk 0:00:43]}  Kxf3 {[%clk 0:02:07]} 38. Rg4 {[%clk 0:00:42]}  Rc1+ {[%clk 0:02:06]} 39. Kh2 {[%clk 0:00:42]}  Rc2+ {[%clk 0:02:07]} 40. Kh1 {[%clk 0:00:38]}  Rc1+ {[%clk 0:02:07]} 41. Kh2 {[%clk 0:00:35]}  Rc2+ {[%clk 0:02:07]} 42. Kh1 {[%clk 0:00:35]}  Rc1+ {[%clk 0:02:07]} 43. Kh2 {[%clk 0:00:35]} 1/2-1/2


[Site "https://www.chess.com"]